Cogmind - Beta 11.1 *** ADVENTURER MODE // 2022.05.03 @ 17:57:48 Player: Chiefwannatoke Result: Self-destructed Performance ------------- Evolutions (0) 0 Regions Visited (4) 800 Robots Destroyed (23) 115 Value Destroyed (484) 484 Prototype IDs (23) 460 Alien Tech Used (0) 0 Bonus (325) 325 TOTAL SCORE: 2184 Bonus ------- Follower Combat Kills 25 Aligned with FarCom 300 Cogmind --------- Core Integrity 130/250 Matter 294/300 Energy 99/100 System Corruption 0% Temperature Cool (3) Movement Walking (90) Location -9/Mines Parts ------- > --- POWER (1) -------- (None) > --- PROPULSION (2) --- Potential Leg Potential Leg > --- UTILITY (2) ------ Large Storage Unit Targeting Computer > --- WEAPON (2) ------- Small Laser Small Laser > --- INVENTORY (15) --- Light Ion Engine Improved Heat Sink Small Storage Unit Experimental Sensor Array Terrain Scanner Small Laser Light Assault Rifle Peak State ------------ > --- POWER ------------ Light Ion Engine > --- PROPULSION ------- Potential Leg Potential Leg > --- UTILITY ---------- Large Storage Unit Targeting Computer > --- WEAPON ----------- EM Pulse Gun Small Laser > --- INVENTORY -------- Light Ion Engine Improved Heat Sink Small Storage Unit Experimental Sensor Array Terrain Scanner Small Laser Small Laser Light Assault Rifle [Rating: 26] Favorites ----------- Power Light Ion Engine Engine Light Ion Engine Propulsion Light Treads Treads Light Treads Leg Potential Leg Wheel Wheel Utility Targeting Computer Device Terrain Scanner Storage Large Storage Unit Processor Targeting Computer Weapon Small Laser Energy Gun Small Laser Ballistic Gun Light Assault Rifle Build | -11 -10 -10 -10 -9 ------- Run | Scr Mat Min Exi Min Slots Evolved . | . . . . . Power . | . . . . . Propulsion . | . . . . . Utility . | . . . . . Weapon . | . . . . . Parts Attached 20 | 7 8 2 2 1 Power 4 | 2 . 2 . . Engine 4 | 2 . 2 . . Core . | . . . . . Reactor . | . . . . . Propulsion 6 | 2 2 . 2 . Treads 2 | 1 1 . . . Leg 2 | . . . 2 . Wheel 2 | 1 1 . . . Hover . | . . . . . Flight . | . . . . . Utility 4 | 1 3 . . . Device 1 | . 1 . . . Storage 2 | 1 1 . . . Processor 1 | . 1 . . . Hackware . | . . . . . Protection . | . . . . . Artifact . | . . . . . Weapon 6 | 2 3 . . 1 Energy Gun 5 | 1 3 . . 1 Energy Cannon . | . . . . . Ballistic Gun 1 | 1 . . . . Ballistic Cannon . | . . . . . Launcher . | . . . . . Special Weapon . | . . . . . Impact Weapon . | . . . . . Slashing Weapon . | . . . . . Piercing Weapon . | . . . . . Special Melee Weapon . | . . . . . Unidentified Prototypes . | . . . . . Parts Lost 5 | . 2 1 . 2 Power 2 | . . 1 . 1 Propulsion 2 | . 2 . . . Utility . | . . . . . Weapon 1 | . . . . 1 Highest Loss Streak 2 | . 2 1 . 2 To Critical Strikes . | . . . . . Average Slot Usage (%) 98 | . 98 99 100 91 Engine 12 | . 14 13 14 5 Treads 11 | . 14 14 7 . Leg 4 | . . . 12 28 Wheel 11 | . 12 14 7 . Storage 14 | . 14 14 14 14 Processor 13 | . 11 14 14 14 Energy Gun 25 | . 18 28 28 28 Ballistic Gun 2 | . 9 . . . Naked Turns . | . . . . . Heaviest Build 28 | 12 28 28 26 26 Greatest Support 60 | 20 20 10 60 60 Greatest Overweight (x) 2 | 2 2 2 2 . Average Overweight (x) 1 | . . 2 1 . Largest Inventory Capacity 15 | 8 15 15 15 15 Average Capacity 13 | 7 11 15 15 15 Most Carried 8 | 4 8 8 8 8 Average Carried 6 | 2 5 7 8 7 Final Capacity 15 | 8 15 15 15 15 Final Carried 8 | 4 7 8 8 7 Class Distribution -------------------- 100% | Mutant Dominant Class ---------------- Mutant | -10/Materials Mutant | -10/Mines Mutant | -10/Exiles Mutant | -9/Mines Resources | -11 -10 -10 -10 -9 ----------- Run | Scr Mat Min Exi Min Matter Collected 397 | 201 162 20 . 14 Remotely . | . . . . . Salvage Created 616 | . 261 306 . 49 Parts 43 | . 11 31 . 1 Haulers Intercepted . | . . . . . Recyclers Shooed . | . . . . . Parts Field Recycled . | . . . . . Retrieved Matter . | . . . . . Parts Self-Destructed . | . . . . . Prevented . | . . . . . Kills | -11 -10 -10 -10 -9 ------- Run | Scr Mat Min Exi Min Combat Hostiles Destroyed 23 | . 6 14 . 3 Guns 22 | . 6 13 . 3 AOE 1 | . . 1 . . Classes Destroyed 2 | . 1 1 . . Swarmer 15 | . . 12 . 3 Grunt 8 | . 6 2 . . Best Kill Streak 3 | . 3 3 . 3 Combat Bots Only 3 | . 3 3 . 3 Max Kills in Single Turn 1 | . 1 1 . 1 Gunslinging . | . . . . . Exploded 1 | . . 1 . . Melee . | . . . . . Uniques/NPCs Destroyed . | . . . . . Combat | -11 -10 -10 -10 -9 -------- Run | Scr Mat Min Exi Min Damage Taken 823 | . 453 198 . 172 Core 120 | . 72 19 . 29 Absorbed by Shields . | . . . . . Core Remaining (%) 100 | 100 . . . . Volleys Fired 58 | . 27 23 . 8 Largest 2 | . 2 2 . 2 Hottest 80 | . 80 80 . 80 Shots Fired 111 | . 53 43 . 15 Gun 111 | . 53 43 . 15 Cannon . | . . . . . Launcher . | . . . . . Special . | . . . . . Kinetic 18 | . 18 . . . Thermal 70 | . 35 20 . 15 Explosive . | . . . . . Electromagnetic 23 | . . 23 . . Robot Hit Streak 50 | . 45 50 . 3 Robot Miss Streak 3 | . 1 3 . 1 Penetration Max . | . . . . . Secondary Targets 4 | . 1 2 . 1 Max Gunslinging Chain 1 | . 1 1 . 1 Shots Hit Robots 91 | . 50 31 . 10 Core Hits 37 | . 17 16 . 4 Critical Kills . | . . . . . Critical Parts Destroyed . | . . . . . Critical Strikes . | . . . . . Melee Attacks . | . . . . . Impact . | . . . . . Slashing . | . . . . . Piercing . | . . . . . Sneak Attacks . | . . . . . Combat Hostiles . | . . . . . Follow-up Attacks . | . . . . . Damage Inflicted 1063 | . 506 436 . 121 Guns 972 | . 506 345 . 121 Cannons . | . . . . . Explosions 88 | . . 88 . . Melee . | . . . . . Ramming 3 | . . 3 . . Kinetic 130 | . 130 . . . Thermal 716 | . 376 219 . 121 Explosive . | . . . . . Electromagnetic 214 | . . 214 . . Impact . | . . . . . Slashing . | . . . . . Piercing . | . . . . . Highest Corruption . | . . . . . Average Corruption . | . . . . . Corruption Purged . | . . . . . Corruption Blocked . | . . . . . Overload Shots . | . . . . . Overflow Damage . | . . . . . Projectiles . | . . . . . Explosions . | . . . . . Melee . | . . . . . Knockbacks . | . . . . . Impact . | . . . . . Kinetic . | . . . . . Secondary . | . . . . . Self-Inflicted Damage 22 | . . 22 . . Shots 1 | . . 1 . . Rammed 1 | . . 1 . . Targets Rammed 1 | . . 1 . . Kicked . | . . . . . Crushed . | . . . . . Highest Temperature 296 | . 296 81 . 48 Average Temperature 91 | . 146 36 . 29 Received Heat Transfer 396 | . 369 27 . . Effects 3 | . 3 . . . Interference 3 | . 3 . . . Siege Activations . | . . . . . Robots Corrupted . | . . . . . Combat Hostiles . | . . . . . Parts Fried . | . . . . . Impact Corruptions . | . . . . . Robots Melted . | . . . . . Combat Hostiles . | . . . . . Parts Melted 3 | . 2 . . 1 Heat Transferred 1525 | . 850 400 . 275 Parts Sabotaged . | . . . . . Parts Stolen . | . . . . . Parts Stripped . | . . . . . Power Chain Reactions 2 | . . 2 . . Missiles Intercepted . | . . . . . Alert | -11 -10 -10 -10 -9 ------- Run | Scr Mat Min Exi Min Peak Influence 229 | . 130 229 . 60 Initial 4 | . . 4 . . Average 66 | . 30 99 . 32 Maximum Alert Level 1 | . . 1 . . Low Security (%) 99 | 100 100 99 . 100 Level 1 . | . . . . . Level 2 . | . . . . . Level 3 . | . . . . . Level 4 . | . . . . . Level 5 . | . . . . . High Security . | . . . . . Max Security . | . . . . . Squads Dispatched . | . . . . . Investigation . | . . . . . Extermination . | . . . . . Reinforcement . | . . . . . Assault . | . . . . . Garrison . | . . . . . Intercept . | . . . . . Searches Triggered . | . . . . . Construction Impeded . | . . . . . Haulers Reinforced . | . . . . . Active Scanning Responses . | . . . . . Cargo Convoy Interrupts . | . . . . . Stealth | -11 -10 -10 -10 -9 --------- Run | Scr Mat Min Exi Min Distress Signals . | . . . . . Communications Jammed . | . . . . . Distress Signals . | . . . . . Times Spotted 33 | . 10 13 . 10 Peak Tracking Total 8 | . 4 3 . 8 Tactical Retreats . | . . . . . Traps | -11 -10 -10 -10 -9 ------- Run | Scr Mat Min Exi Min Traps Triggered . | . . . . . Indirectly . | . . . . . Trap Hack Attempts . | . . . . . Triggered . | . . . . . Disarmed . | . . . . . Reprogrammed . | . . . . . Reused . | . . . . . Traps Extracted . | . . . . . Installed . | . . . . . Triggered . | . . . . . Machines | -11 -10 -10 -10 -9 ---------- Run | Scr Mat Min Exi Min Machines Disabled 1 | . . 1 . . Max in Single Turn 1 | . . 1 . . Machines Sabotaged . | . . . . . Garrisons Compromised . | . . . . . Overloaded Fab Kills . | . . . . . Hacking | -11 -10 -10 -10 -9 --------- Run | Scr Mat Min Exi Min Machines Accessed 2 | . . . 2 . Terminals . | . . . . . Fabricators . | . . . . . Repair Stations . | . . . . . Recycling Units . | . . . . . Scanalyzers . | . . . . . Garrison Access . | . . . . . Total Hacks 2 | . . . 2 . Successful 2 | . . . 2 . Failed . | . . . . . Catastrophic . | . . . . . Database Lockouts . | . . . . . Manual 1 | . . . 1 . Terminals . | . . . . . Fabricators . | . . . . . Repair Stations . | . . . . . Recycling Units . | . . . . . Scanalyzers . | . . . . . Garrison Access . | . . . . . Terminal Hacks 2 | . . . 2 . Record 1 | . . . 1 . EX-Prototype ID Bank 1 | . . . 1 . Fabricator Hacks . | . . . . . Repair Station Hacks . | . . . . . Recycling Unit Hacks . | . . . . . Scanalyzer . | . . . . . Garrison Access Hacks . | . . . . . Unauthorized Hacks . | . . . . . Terminals . | . . . . . Fabricators . | . . . . . Repair Stations . | . . . . . Recycling Units . | . . . . . Scanalyzers . | . . . . . Garrison Access . | . . . . . Data Cores Recovered . | . . . . . Used . | . . . . . Hacking Detections . | . . . . . Full Trace Events . | . . . . . Feedback Events . | . . . . . Feedback Blocked . | . . . . . Robot Schematics Acquired . | . . . . . Robots Built . | . . . . . Authchips . | . . . . . Time . | . . . . . Total Robot Build Rating . | . . . . . Part Schematics Acquired . | . . . . . Parts Built . | . . . . . Authchips . | . . . . . Time . | . . . . . Total Part Build Rating . | . . . . . Parts Repaired . | . . . . . Time . | . . . . . Parts Recycled . | . . . . . Recycled Matter . | . . . . . Retrieved Matter . | . . . . . Retrieved Components . | . . . . . Parts Scanalyzed . | . . . . . Part Schematics Acquired . | . . . . . Parts Damaged . | . . . . . Bothacking | -11 -10 -10 -10 -9 ------------ Run | Scr Mat Min Exi Min Used RIF Installer . | . . . . . Robots Hacked . | . . . . . Non-combat . | . . . . . Combat . | . . . . . Robot Hacks Applied . | . . . . . Relay Couplers Released . | . . . . . Fabnet Peak Effective % . | . . . . . Robots Rewired . | . . . . . Allies Hacked . | . . . . . Hacks Repelled . | . . . . . Allies | -11 -10 -10 -10 -9 -------- Run | Scr Mat Min Exi Min Total Allies 2 | . . . . 2 Largest Group 1 | . . . . 1 Highest-Rated Group 31 | . . . . 31 Highest-Rated Ally 31 | . . . . 31 Total Orders . | . . . . . Ally Attacks 6 | . . . . 6 Total Damage 103 | . . . . 103 Kills 1 | . . . . 1 Allies Corrupted . | . . . . . Allies Melted . | . . . . . Intel | -11 -10 -10 -10 -9 ------- Run | Scr Mat Min Exi Min Robot Analysis Total . | . . . . . Derelict Logs Recovered 3 | . . 2 . 1 Drone Launches . | . . . . . Drone Recoveries . | . . . . . Exploration | -11 -10 -10 -10 -9 ------------- Run | Scr Mat Min Exi Min Turns Passed 1722 | 71 436 797 230 188 Spaces Moved 1235 | 40 226 577 226 166 Core 7 | 7 . . . . Treads 169 | 29 140 . . . Legs 277 | . . . 111 166 Wheels 782 | 4 86 577 115 . Hover . | . . . . . Flight . | . . . . . Fastest Speed 50 | 50 110 110 90 90 Average Speed 113 | 146 148 110 100 90 Slowest Speed 240 | 160 240 110 110 90 Overloaded Moves . | . . . . . Propulsion Burnouts . | . . . . . Robots Hopped . | . . . . . Cave-ins Triggered . | . . . . . Exploration Rate (%) 54 | 5 51 99 61 57 Regions Visited 4 Branch Regions 3 Pre-discovered Areas 1 | . . . 1 . Known Exits Taken . | . . . . . Unknown Exits Taken 4 | 1 1 1 1 . Scrap Searched 1 | . . 1 . . Spaces Dug . | . . . . . Terrain Destroyed 10 | . . 10 . . Melee . | . . . . . Projectile . | . . . . . AOE 10 | . . 10 . . Terrain Rammed . | . . . . . Walls Destroyed . | . . . . . Machines Disabled . | . . . . . Actions | -11 -10 -10 -10 -9 --------- Run | Scr Mat Min Exi Min Total 1437 | 49 275 695 229 189 Wait 117 | . 11 92 . 14 Move 1231 | 39 225 576 225 166 Hop . | . . . . . Pick Up 5 | 3 1 1 . . Fast Attach 11 | 6 3 . 2 . Attach 5 | . 3 1 . 1 Detach 3 | . 3 . . . Swap 4 | 1 2 1 . . Drop 2 | . . . 2 . Fire 58 | . 27 23 . 8 Melee . | . . . . . Ram 1 | . . 1 . . Kick . | . . . . . Crush . | . . . . . Escape Stasis . | . . . . . Rewire . | . . . . . Trap . | . . . . . Miscellaneous . | . . . . . Route ------- -11/Scrapyard -10/Materials (discovered 2 exits: *Mat / [*Min]) -10/Mines (discovered 3 exits: *Mat x2 / *Exi) -10/Exiles -9/Mines History --------- Turn | Location | Event 17 | -11/Scrapyard | Discovered new exit (range 15) 72 | -11/Scrapyard | Entered Materials 260 | -10/Materials | Discovered new exit (range 16) 308 | -10/Materials | Build established: Mutant 396 | -10/Materials | Discovered new exit (range 8) 508 | -10/Materials | Entered Mines 682 | -10/Mines | Identified exit to Materials 704 | -10/Mines | Learned 2 Materials zone layouts 769 | -10/Mines | Found a damaged Exp. Sensor Array with a note attached 771 | -10/Mines | Found Prototype Device 1063 | -10/Mines | Discovered exit to Materials (range 14) 1299 | -10/Mines | Deemed a non-threat by the Exiles lab entrance 1300 | -10/Mines | Discovered new exit (range 5) 1305 | -10/Mines | Entered Exiles 1332 | -10/Exiles | Met 8R-AWN 1351 | -10/Exiles | Met EX-HEX 1381 | -10/Exiles | Met EX-BIN 1399 | -10/Exiles | Aligned with FarCom system 1400 | -10/Exiles | Given EX-Vault access code 1425 | -10/Exiles | Opened EX-Vault 1433 | -10/Exiles | Found Potential Leg 1435 | -10/Exiles | Found Potential Leg 1457 | -10/Exiles | Warned to stay clear of 0b10 Research branches 1487 | -10/Exiles | Met EX-DEC 1500 | -10/Exiles | Learned location of Zion (-6) 1525 | -10/Exiles | Discovered new exit (range 12) 1535 | -10/Exiles | Left Exiles lab with Potential Leg 1535 | -10/Exiles | Entered Mines 1626 | -9/Mines | Learned Materials stockpile data 1695 | -9/Mines | Assembled infested the area 1723 | -9/Mines | Self-destructed Last Messages --------------- 01535_ Receiving FarCom transmissions... 01602_ EM Pulse Gun destroyed. 01608_ K-01 Serf collects debris. 01608_ Flight Unit melted. 01608_ S-10 Pest destroyed. 01608_ Switching to secondary target: S-10 Pest. 01611_ K-01 Serf collects debris. 01611_ Lgt. Ion Engine destroyed. 01611_ S-10 Pest destroyed. 01626_ Acquired derelict log, extracted data. Data stored: Materials stockpile data. 01644_ Acquired 14 matter. 01663_ K-01 Serf collects debris. 01691_ A pair of derelicts emerge from the shadows: "We're, um, lost. You wouldn't happen to know the way out of here, would you?" 01691_ I2-2FU(z) destroyed. 01695_ ALERT: Infestation in the mines, dispatching Demolisher response squad. 01696_ UK-6T7(g) Lgt. Angular Momentum Engine severed. 01700_ G-34 Mercenary destroyed. Map ----- +----------------------------------------------------+ | ??????????????????????????????????????????????? | | ??????????????????????????????????????????????? | | ??????????????????????????????????????????????? | | ??????????????????????????????????????????????? | | ??????????????????????????????????????????????? | | ??????????????????????????????????????????????? | | ??????????????????????????????????????????????? | | ??????????????????????????????????????????????? | | ??????????????????????????????????????????????? | | ??????????????????????????????????????????????? | | ????????????????????!%????????????????????????? | | ????????????????????!*????????????????????????? | | ????????????????????!a????????????????????????? | | ???????????????????? =##??????????????????????? | | ???????????????????? ??????????????????????? | | ???????????????????? ??????????????????????? | | ?????????????????#### ??????????????????????? | | ?????????????#??? $ ??????????????????????? | | ?????????????# ??? ??????????????????????? | | ?????????????# ??# #??????????????????????? | | ????????????## $?? < #??????????????????????? | | ????????????# % ## ####???????????????????? | | ????????????# #???????????????????? | | ????????????# ##??????????????????? | | ????????????# ##?????????????????? | | ??????????????????# @ #?????????????????? | | ??????????????????## ##????????????????? | | ?????????????????? ##???????????????? | | ???????????????? ##??????????????? | | ?????????????? d ##### #??????????????? | | ???????????? ????##dg ##?????????????? | | ??????????# ????##g #?????????????? | | ??????????### ????## #?????????????? | | ????????????## ???## #?????????????? | | ????????????? ??# ##?????????????? | | ????????????## ## ##?##???????????? | | ?????????????## ### ##??????????? | | ??????????????## #??????????? | | ???????????????# # #????######? | | ??????????????????#[! ##???## ## | | ??????????????????#%=** ####?#### # | | ??????????????????#*%# ###### ###### # | | ??????????????????#!=###?????# #? | | ?????????????????%[%?????????# ## | | ?????????????????????????????# ### # | | ????????????????????????????## #?# ## | | ???????????????????????????## #?# #### | | ???????????????????????????# #?## ##??# | | ???????????????????????????# #??####??# # | | ???????????????????????????# #????????## ## | +----------------------------------------------------+ Best States ------------- Heat Dissipation 25 Energy Generation 10 Energy Capacity 250 Matter Stores 300 Matter Capacity 300 Sight Range 16 Terrain Scan Range 14 Terrain Scan Density 10 Resistance: KI 20 Resistance: TH 20 Resistance: EX 20 Resistance: EM 20 Resistance: I 20 Resistance: S 20 Resistance: P 20 Evasion (%) 57 Targeting Accuracy 5 Recoil Reduction 2 Offensive Hacking 10 Item Schematics ----------------- None Robot Schematics ------------------ None Fabricated ------------ Nothing Alien Tech Used ----------------- None Achievements -------------- None Challenges ------------ None Game ------ Seed DrainedLinkedRailgun Manual? 0 Play Time 00:13:02 Cumulative 75.3 hours Start 2022.05.03 @ 17:45:21 End 2022.05.03 @ 17:57:48 Sessions 1 Manual Loads 0 Difficulty Adventurer Special Mode None Game No. 67 Rogue 35 Adventurer 30 Explorer 2 Win Type - Total 0 Types 0/0/0/0/0/0/0/0/0 Lore% 65 Gallery% 70 Achievement% 59 Wizard Run 0 Options --------- ASCII 0 Keyboard 0 Movement Numpad Keybinds 0 Fullscreen 1 Font 18/SmallcapsGlow Map View 76x50 Tactical HUD 1 Map Filters NONE Filters NONE Steam 1 RUN: a03147b7-7620-46fe-a694-fe90b5b066a5